bitfinex-derivatives/quotes_ETHF0:USTF0_20260131
["timestamp","ask_amount","ask_price","bid_price","bid_amount"]
[1769877417159,3.64592288,2519.0,2517.3,3.90824668]
[1769877417856,3.64592288,2519.3,2517.7,3.70427626]
[1769877418162,3.64592288,2519.7,2518.3,3.70427626]
[1769877418559,3.64592288,2519.7,2518.3,3.90312626]
[1769877420871,0.00485562,2519.9,2518.6,3.70427626]
[1769877421777,0.00485562,2519.9,2518.9,3.70427626]
[1769877422167,3.6507785,2519.9,2518.2,3.90313626]
[1769877422573,3.64592288,2519.7,2518.2,3.90313626]
[1769877422775,3.64592288,2519.7,2517.9,7.27927626]
[1769877423175,3.64592288,2519.5,2517.9,7.27927626]
[1769877423674,3.64592288,2519.3,2517.9,3.575]
[1769877423872,3.64592288,2519.3,2517.6,3.70427626]
[1769877423873,3.64592288,2519.1,2517.6,3.70427626]
[1769877424774,3.64592288,2519.1,2517.3,3.70931668]
[1769877424972,3.64592288,2518.9,2517.3,3.70931668]
[1769877425172,3.64592288,2518.7,2517.3,3.70931668]
[1769877425373,3.64592288,2518.7,2517.3,0.00504042]
[1769877425575,3.64592288,2518.5,2517.3,0.00504042]
[1769877426078,3.64592288,2518.3,2517.3,0.00504042]
[1769877426975,4.034,2518.9,2517.3,0.00504042]
[1769877426976,6.97387668,2520.1,2517.5,0.19891]
[1769877427169,19.66239983,2521.6,2518.0,0.19887]
[1769877427170,4.02534324,2521.6,2518.0,0.19887]
[1769877427369,4.02534324,2521.6,2518.3,0.19885]
[1769877427577,4.02534324,2522.4,2520.2,0.1987]
[1769877427774,4.02534324,2522.3,2521.6,3.54619297]
[1769877428174,4.02534324,2521.8,2521.6,3.55062716]
[1769877428382,15.60384966,2521.7,2521.6,0.00443419]
[1769877428775,0.00358715,2522.3,2520.9,5.91032162]
[1769877428975,15.60384966,2522.0,2521.4,2.35903583]
[1769877429175,61.03019393,2522.2,2521.5,2.35903583]
[1769877429382,15.60384966,2521.9,2521.4,2.35903583]
[1769877429581,15.60384966,2522.0,2521.6,2.35903583]
[1769877429781,0.00358715,2522.3,2521.6,0.00326963]
[1769877429980,15.60384966,2521.7,2521.2,4.71807166]
[1769877430182,15.60384966,2521.9,2521.2,4.71807166]
[1769877430480,45.42307464,2522.2,2521.7,4.71807166]
[1769877430675,3.81973365,2522.9,2521.8,4.71807166]
[1769877430876,3.81973365,2523.3,2522.3,4.71807166]
[1769877431079,45.42307464,2523.6,2522.7,4.71807166]
[1769877431280,3.81973365,2523.5,2522.5,4.71807166]
[1769877431579,3.81973365,2523.5,2522.1,0.19855]
[1769877431580,3.81973365,2523.3,2522.1,4.71807166]
[1769877431779,3.81973365,2523.2,2522.1,0.00307525]
[1769877431980,3.81973365,2523.0,2522.1,0.00307525]
[1769877432177,0.00470393,2523.3,2522.1,0.41429443]
[1769877432384,3.81973365,2524.0,2523.0,4.71807166]
[1769877432582,3.81973365,2524.0,2523.1,4.71807166]
[1769877433378,19.40521968,2523.9,2522.9,4.71807166]
[1769877433580,3.80137002,2523.8,2522.9,4.71807166]
[1769877433885,3.80137002,2523.8,2522.8,4.71807166]
[1769877434282,3.80137002,2523.8,2522.7,4.71807166]
[1769877434283,49.22444466,2523.8,2522.7,4.71807166]
[1769877434477,49.22444466,2523.8,2522.6,4.91658166]
[1769877434879,3.79125433,2523.7,2522.6,4.71807166]
[1769877435079,45.42307464,2523.8,2522.2,4.71807166]
[1769877435080,3.79125433,2523.4,2522.2,4.71807166]
[1769877435286,3.79125433,2523.4,2522.1,4.72114691]
[1769877435580,3.79125433,2523.2,2522.1,0.00307525]
[1769877435982,3.79125433,2523.0,2522.1,0.00307525]
[1769877436375,15.60384966,2522.9,2522.1,0.00307525]
[1769877436575,45.42307464,2522.9,2522.1,0.00307525]
[1769877437480,3.78265104,2523.9,2522.6,0.19851]
[1769877437880,3.78265104,2523.9,2522.7,0.1985]
[1769877438285,0.00404072,2524.0,2523.1,0.19847]
[1769877438886,4.02547179,2524.0,2523.1,0.19847]
[1769877439280,0.00404072,2524.0,2523.1,0.19847]
[1769877440478,4.02143107,2524.5,2523.1,0.20629435]
[1769877440682,4.02143107,2524.5,2523.1,0.19847]
[1769877440982,4.0063453,2524.3,2523.1,0.19847]
[1769877441182,4.0063453,2524.2,2523.1,0.19847]
[1769877441482,19.61532749,2524.2,2523.1,0.19847]
[1769877441690,4.0063453,2524.0,2523.1,0.19847]
[1769877441985,4.0063453,2523.8,2522.3,0.23652589]
[1769877442488,4.0063453,2523.8,2522.5,0.23651589]
[1769877442687,4.01127739,2524.2,2522.7,0.03839677]
[1769877442886,4.01127739,2524.2,2522.6,0.19851]
[1769877443188,4.00614486,2523.9,2522.6,0.19851]
[1769877443686,4.00614486,2523.8,2522.6,0.19851]
[1769877444084,0.00513253,2524.2,2522.6,0.19851]
[1769877444290,4.01127739,2524.2,2522.8,0.03839677]
[1769877444480,15.60384966,2523.9,2522.8,0.19849]
[1769877444685,4.00614486,2523.8,2522.8,0.19849]
[1769877444985,3.98163118,2523.7,2522.8,0.19849]
[1769877445184,19.58548084,2523.7,2522.8,0.19849]
[1769877445583,3.98163118,2524.1,2522.8,2.51210135]
[1769877445787,3.98163118,2524.0,2522.8,2.51210135]
[1769877446288,3.98163118,2524.0,2522.9,2.31361135]
[1769877446686,19.58548084,2524.0,2522.9,2.31361135]
[1769877446883,3.98163118,2524.0,2523.1,2.31361135]
[1769877447689,3.98163118,2524.0,2523.2,2.31361135]
[1769877448091,19.58548084,2524.0,2523.2,2.31361135]
[1769877448284,19.58548084,2524.0,2523.3,2.31361135]
[1769877448484,3.98163118,2524.0,2523.3,2.31361135]
[1769877448688,0.00513253,2524.2,2523.3,2.31361135]
[1769877448989,15.60384966,2524.1,2523.4,0.28857174]
[1769877449188,3.88618991,2524.2,2523.6,2.31361135]
[1769877449490,3.88105738,2523.7,2523.3,2.31361135]
[1769877450386,7.535,2525.6,2522.8,5.91032162]
[1769877450387,3.966,2527.0,2525.3,0.19829]
[1769877450583,2.326,2528.5,2525.8,2.31819207]
[1769877450787,2.326,2528.5,2525.9,2.31819207]
[1769877450988,2.326,2528.5,2526.0,2.31819207]
[1769877451189,0.06887305,2528.6,2525.0,7.09238594]
[1769877451190,0.06887305,2528.6,2526.1,2.31819207]
[1769877451392,5.895,2528.5,2526.4,2.31819207]
[1769877451591,0.00397648,2528.6,2526.7,0.19818]
[1769877451985,0.00397648,2528.6,2526.7,2.51637207]
[1769877452291,4.02534325,2528.5,2526.8,2.31819207]
[1769877452693,4.02534325,2528.5,2527.2,0.19815]
[1769877453088,4.02534325,2528.5,2527.2,2.70343058]
[1769877453294,4.02534325,2528.5,2527.2,2.51634207]
[1769877453485,4.02534325,2528.5,2527.2,2.31819207]
[1769877453692,4.02534325,2528.5,2526.9,2.31819207]
[1769877454397,4.02534325,2528.5,2527.1,2.31819207]
[1769877455393,4.02534325,2528.5,2527.2,2.31819207]
[1769877455595,4.02534325,2528.5,2526.4,8.20438414]
[1769877455796,4.02534325,2528.5,2526.4,1.10596984]
[1769877456098,4.02534325,2528.5,2526.2,0.19823]
[1769877456294,3.96162738,2528.3,2526.2,0.19823]
[1769877456693,3.96162738,2528.3,2526.5,0.1982]
[1769877457594,3.96162738,2528.3,2526.1,0.00322683]
[1769877458793,4.14059197,2528.1,2526.1,0.00322683]
[1769877458995,4.14061197,2527.9,2526.1,0.00322683]
[1769877459299,4.14061197,2527.9,2525.7,3.48109479]
[1769877460098,4.14061197,2527.9,2525.7,3.48492577]
[1769877460298,4.14061197,2527.9,2525.8,3.48109479]
[1769877460693,3.94251197,2527.9,2525.9,3.69359174]
[1769877460898,3.94251197,2527.9,2526.0,3.48109479]
[1769877461098,3.94251197,2527.9,2525.9,3.67934479]
[1769877461694,3.94251197,2527.9,2526.0,3.48109479]
[1769877461890,3.94251197,2527.9,2525.9,3.67934479]
[1769877462796,3.94251197,2527.9,2526.0,3.48109479]
[1769877462996,3.87157209,2527.8,2526.1,3.48109479]
[1769877463500,3.87157209,2527.8,2526.2,3.48109479]
[1769877463700,3.87157209,2527.8,2526.3,3.48109479]
[1769877463901,3.87157209,2527.8,2526.2,3.48109479]
[1769877464198,3.863484,2527.0,2525.4,1.77935184]
[1769877464401,3.863484,2527.0,2524.9,3.85861163]
[1769877465098,3.863484,2527.0,2524.9,3.86255229]
[1769877465300,3.863484,2527.0,2524.9,4.06088229]
[1769877470202,4.061654,2527.0,2524.9,3.86255229]
[1769877470805,3.863484,2526.8,2524.9,3.86255229]
[1769877471109,3.86660404,2526.8,2524.9,3.86255229]
[1769877474107,3.86660404,2526.8,2525.1,3.85861163]
[1769877476311,3.86660404,2526.8,2525.2,3.85861163]
[1769877477314,3.86660404,2526.8,2525.3,3.85861163]
[1769877479314,4.06478404,2526.8,2525.2,4.68844303]
[1769877479611,4.061694,2526.5,2524.9,4.69238369]
[1769877480007,4.061694,2526.5,2524.9,0.00394066]
[1769877480413,4.061694,2526.5,2524.9,8.55099532]
[1769877480618,4.061694,2526.5,2525.0,3.85861163]
[1769877480915,3.863484,2526.5,2525.1,3.85861163]
[1769877481110,3.863484,2526.5,2525.2,3.85861163]
[1769877481322,3.863484,2526.5,2525.2,8.54705466]
[1769877481512,3.863484,2526.5,2525.3,3.85861163]
[1769877481713,3.86660404,2526.8,2525.4,3.85861163]
[1769877483018,3.86660404,2526.8,2525.5,3.85861163]
[1769877483222,0.00312004,2526.8,2525.6,8.54705466]
[1769877483417,3.86660404,2526.8,2525.7,4.68844303]
[1769877483614,0.19821,2526.4,2524.9,9.71275226]
[1769877483820,0.19822,2526.3,2524.9,3.86255229]
[1769877484613,0.19822,2526.3,2524.3,7.09238594]
[1769877484614,0.06387254,2525.8,2524.4,5.85019997]
[1769877484822,0.05993188,2525.6,2524.2,9.83439203]
[1769877485014,0.05993188,2525.5,2524.2,9.83439203]
[1769877485220,0.05993188,2525.5,2523.9,3.98616239]
[1769877485418,0.05993188,2525.3,2523.9,3.98616239]
[1769877485816,0.05993188,2525.3,2523.9,3.98908499]
[1769877486118,0.05993188,2526.4,2524.6,9.83636236]
[1769877486322,0.05993188,2526.3,2524.7,3.98616239]
[1769877486816,0.05993188,2526.1,2524.7,3.98616239]
[1769877487023,0.05993188,2526.1,2524.3,3.99119422]
[1769877487323,0.05993188,2526.1,2524.5,3.99119422]
[1769877489518,2.27760789,2526.6,2524.5,3.99119422]
[1769877489724,0.00312004,2526.8,2525.3,3.99920849]
[1769877489921,0.03057887,2526.4,2525.1,3.99920849]
[1769877490115,0.19822,2526.4,2525.1,3.99920849]
[1769877491018,0.03057887,2526.7,2525.1,3.99920849]
[1769877491220,0.00312004,2526.8,2525.2,9.86469789]
[1769877491524,0.00312004,2526.8,2525.6,9.86469789]
[1769877491726,0.00312004,2526.8,2525.7,4.01449792]
[1769877492024,0.00312004,2526.8,2525.7,4.01793505]
[1769877492420,3.566,2527.1,2525.9,4.01449792]
[1769877493421,3.57014735,2527.1,2525.9,4.01449792]
[1769877496026,3.57014735,2527.1,2525.7,0.00343713]
[1769877496427,3.57014735,2527.1,2525.7,4.01762653]
[1769877498023,0.0104485,2527.0,2525.7,4.01762653]
[1769877498224,0.0104485,2526.6,2525.7,0.00343713]
[1769877498427,0.2086585,2526.5,2525.3,4.00927367]
[1769877498825,0.00692761,2526.4,2525.3,4.00927367]
[1769877499025,0.00692761,2526.4,2525.0,9.86123409]
[1769877499328,0.00692761,2526.4,2525.0,4.01411333]
[1769877500024,0.00692761,2526.4,2524.9,4.86988094]
[1769877500228,0.00692761,2526.4,2524.3,4.01449792]
[1769877500229,0.19828,2525.6,2524.3,4.01449792]
[1769877500429,7.597,2525.5,2524.3,4.01449792]
[1769877500728,4.1306201,2525.4,2524.3,4.01449792]
[1769877501024,7.597,2525.5,2524.3,4.01449792]
[1769877501228,7.597,2525.5,2524.3,4.01756946]
[1769877505822,7.63229873,2525.5,2524.3,4.01756946]
[1769877506026,0.03529873,2525.4,2524.3,0.00307154]
[1769877506226,0.03529873,2525.3,2524.3,0.00307154]
[1769877506424,0.0381751,2525.3,2524.3,0.00307154]
[1769877509032,0.0381751,2525.3,2523.9,3.99684855]
[1769877509933,0.05326936,2525.1,2523.9,3.99684855]
[1769877510132,0.19831,2525.2,2523.9,4.00043976]
[1769877510933,0.00287637,2525.3,2523.9,4.00043976]
[1769877514633,0.19832,2525.1,2523.9,4.00043976]
[1769877514837,0.05114967,2524.9,2523.9,4.00043976]
[1769877515233,0.19832,2525.0,2523.9,4.00043976]
[1769877515635,0.00287637,2525.3,2523.9,4.00043976]
[1769877517840,0.11124952,2525.3,2523.9,4.00043976]
[1769877518037,0.10837315,2525.1,2523.9,4.00043976]
[1769877518643,0.10837315,2525.0,2523.9,4.00043976]
[1769877521749,0.10478611,2524.9,2523.9,4.00043976]
[1769877521953,0.31852269,2525.0,2523.9,0.00359121]
[1769877521954,0.30313611,2524.7,2523.9,0.00359121]
[1769877522251,0.30314611,2524.5,2523.3,3.96368814]
[1769877522452,4.028,2524.4,2523.3,3.96368814]
[1769877523045,4.028,2524.4,2523.3,3.96759049]
[1769877523450,4.33099523,2524.4,2523.3,3.96759049]
[1769877523740,0.50238523,2523.6,2521.7,0.19858]
[1769877523941,0.50238523,2523.6,2520.5,15.68829857]
[1769877523942,0.50238523,2523.4,2521.0,0.19863]
[1769877524144,4.025,2523.3,2521.0,0.19863]
[1769877524347,4.52738523,2523.3,2521.0,0.19863]
[1769877524746,4.52738523,2523.3,2521.0,0.20194578]
[1769877524747,4.5314405,2523.3,2521.0,0.20194578]
[1769877525352,0.50510462,2523.2,2521.0,0.20194578]
[1769877525847,0.50510462,2523.2,2521.1,3.76352889]
[1769877527646,0.28268836,2523.0,2521.1,3.76352889]
[1769877527855,0.28268836,2522.9,2521.1,3.76352889]
[1769877528952,0.19848,2523.0,2521.1,3.76352889]
[1769877529152,4.02905527,2523.3,2521.1,3.76352889]
[1769877530054,4.26576442,2523.3,2521.1,3.76352889]
[1769877530356,4.02905527,2523.3,2521.1,3.76352889]
[1769877531954,0.18895397,2523.2,2521.1,3.76352889]
[1769877532253,0.18895397,2523.0,2521.1,3.76352889]
[1769877533157,0.19847,2523.1,2521.1,3.76352889]
[1769877536054,0.5028475,2523.0,2521.1,3.76352889]
[1769877536858,0.19847,2523.1,2521.1,3.76352889]
[1769877538856,4.02905527,2523.3,2521.1,3.96215889]
[1769877539352,5.27560098,2524.1,2521.0,0.00331578]
[1769877539551,4.0160812,2526.3,2523.2,1.88916924]
[1769877539857,4.0160812,2526.1,2523.4,8.6684717]
[1769877540259,4.0160812,2526.1,2523.5,8.6684717]
[1769877540460,0.0045113,2526.1,2523.5,8.6719645]
[1769877540656,12.0045113,2526.1,2523.9,0.01072274]
[1769877540958,4.01071983,2526.0,2523.9,0.01072274]
[1769877541358,4.01071983,2525.8,2523.9,0.01072274]
[1769877541750,16.01071983,2525.7,2523.9,0.01072274]
[1769877541950,4.01071983,2525.6,2523.9,0.01072274]
[1769877542559,16.01071983,2525.5,2523.9,0.01072274]
[1769877542755,4.01071983,2525.5,2523.9,0.01072274]
[1769877543060,3.9645113,2526.1,2523.9,0.01072274]
[1769877543061,12.0,2525.4,2523.9,0.01072274]
[1769877543254,4.0160812,2525.8,2523.9,0.01072274]
[1769877543562,4.0160812,2525.6,2523.9,0.01072274]
[1769877544060,12.0,2525.5,2523.9,0.01072274]
[1769877544457,4.0205925,2526.1,2523.9,0.01072274]
[1769877544661,4.0160812,2525.9,2523.9,0.01072274]
[1769877545162,4.0160812,2525.7,2523.9,0.01072274]
[1769877545562,4.0160812,2525.5,2523.9,0.01072274]
[1769877545963,4.0160812,2525.3,2523.9,0.01072274]
[1769877546463,12.0,2525.2,2523.9,0.01072274]
[1769877548952,4.01121596,2525.6,2523.9,0.01072274]
[1769877549160,16.01121596,2525.5,2523.9,0.01072274]
[1769877549363,4.01121596,2525.5,2524.0,0.1984]
[1769877549661,12.0,2525.4,2524.1,0.19839]
[1769877549862,4.01121596,2525.8,2524.1,0.19839]
[1769877550062,4.01121596,2525.6,2524.1,0.19839]
[1769877550456,12.0,2525.5,2524.1,0.19839]
[1769877550758,4.01121596,2525.4,2524.1,0.19839]
[1769877551661,16.01121596,2525.3,2524.1,0.19839]
[1769877551858,4.01121596,2525.3,2524.1,0.19839]
[1769877552059,12.0,2525.2,2524.1,0.19839]
[1769877552661,4.01121596,2525.6,2524.1,0.19839]
[1769877553063,12.0,2525.5,2524.1,0.19839]
[1769877553557,12.0,2525.5,2524.3,0.19838]
[1769877554056,4.01121596,2525.4,2524.3,0.19838]
[1769877554262,4.01121596,2525.3,2523.5,0.0034928]
[1769877554461,4.01121596,2525.3,2523.8,0.19842]
[1769877554662,0.2027513,2526.1,2523.8,0.19842]
[1769877554663,4.01121596,2525.1,2523.8,0.19842]
[1769877555363,4.01121596,2524.5,2522.0,5.892]
[1769877555562,12.0,2524.4,2522.0,5.892]
[1769877555757,4.01121596,2524.3,2522.0,5.892]
[1769877556358,4.01562706,2524.3,2522.0,6.21938441]
[1769877556565,4.01121596,2524.1,2522.7,0.1985]
[1769877556960,4.01121596,2523.9,2522.7,0.1985]
[1769877557359,4.01121596,2523.7,2522.7,0.1985]
[1769877557563,18.09872757,2523.5,2522.7,0.1985]
[1769877557762,4.01121596,2523.5,2522.7,0.1985]
[1769877557963,4.01121596,2523.3,2522.7,0.1985]
[1769877558161,4.01121596,2523.3,2522.0,0.32738441]
[1769877558162,4.01121596,2523.2,2522.0,0.32738441]
[1769877558367,4.01121596,2523.9,2522.0,0.32738441]
[1769877558662,4.01121596,2523.5,2522.0,0.32738441]
[1769877559064,16.01121596,2523.4,2522.0,0.32738441]
[1769877559265,4.01121596,2523.4,2522.7,0.1985]
[1769877559464,12.0,2523.3,2522.7,0.1985]
[1769877559864,4.01121596,2523.8,2522.7,0.1985]
[1769877560062,16.01121596,2523.8,2522.7,0.1985]
[1769877560263,22.10994353,2523.7,2522.7,0.1985]
[1769877560458,4.01121596,2523.6,2522.7,0.1985]
[1769877560665,30.09872757,2523.6,2522.7,0.1985]
[1769877560965,12.0,2523.6,2522.7,0.1985]
[1769877561767,4.01121596,2524.0,2522.8,0.19849]
[1769877561959,12.0,2523.9,2522.8,0.19849]
[1769877562667,12.0,2523.8,2522.8,0.19849]
[1769877563565,0.0044111,2524.3,2522.0,0.32738441]
[1769877563770,0.0044111,2524.3,2523.2,0.19846]
[1769877563771,16.01121596,2524.2,2523.2,0.19846]
[1769877564071,4.01121596,2524.1,2523.2,0.19846]
[1769877564263,4.01121596,2523.7,2523.2,0.19846]
[1769877564660,22.10994353,2523.6,2523.2,0.19846]
[1769877564859,18.09872757,2523.3,2522.5,0.19851]
[1769877565163,16.01121596,2523.5,2522.5,0.19851]
[1769877565363,4.01121596,2523.5,2522.6,0.19851]
[1769877565567,30.09872757,2523.4,2522.6,0.19851]
[1769877565774,22.10994353,2523.2,2522.6,0.19851]
[1769877565963,18.09872757,2523.1,2522.0,0.00507235]
[1769877566273,4.01121596,2523.0,2522.6,0.19851]
[1769877566570,18.09872757,2522.9,2522.0,0.00507235]
[1769877566769,4.01121596,2523.0,2522.0,0.00507235]
[1769877567161,4.01121596,2523.0,2522.6,0.19851]
[1769877567361,18.09872757,2522.8,2522.0,0.00507235]
[1769877567571,4.01121596,2523.0,2522.0,0.00507235]
[1769877567972,4.01121596,2522.8,2522.0,0.00507235]
[1769877568370,4.01121596,2522.2,2522.0,0.00507235]
[1769877568566,12.0,2523.8,2521.8,0.19857]
[1769877568763,12.0,2523.9,2521.8,0.19857]
[1769877569163,0.19843,2523.6,2521.8,0.19857]
[1769877569566,0.30893058,2524.3,2521.8,0.19857]
[1769877569567,3.969,2524.3,2522.0,3.94060823]
[1769877569771,0.19831,2525.1,2522.9,0.19848]
[1769877569772,11.80157999,2524.2,2522.9,0.19848]
[1769877569970,11.80157999,2525.0,2522.9,0.19848]
[1769877570164,11.80157999,2525.0,2522.9,3.94060823]
[1769877570366,11.80157999,2525.0,2523.1,3.94060823]
[1769877570573,3.84129508,2524.9,2523.4,4.13905823]
[1769877570971,3.84129508,2524.9,2523.4,0.19845]
[1769877571273,3.84129508,2524.7,2523.4,0.19845]
[1769877571476,3.84129508,2524.7,2522.6,3.94060823]
[1769877571666,3.84129508,2524.5,2522.6,3.94060823]
[1769877572066,11.80157999,2524.4,2522.9,3.94060823]
[1769877572268,3.84129508,2524.9,2522.9,3.94060823]
[1769877572570,3.84129508,2524.9,2523.1,3.94060823]
[1769877572767,3.84129508,2524.9,2523.6,4.13903823]
[1769877572972,3.84129508,2524.9,2523.6,4.14309424]
[1769877574278,3.84129508,2524.9,2523.6,3.94466424]
[1769877574571,3.84129508,2525.2,2523.9,3.94060823]
[1769877574967,3.84129508,2525.2,2524.0,4.09744914]
[1769877575571,3.84487263,2525.2,2524.0,4.09744914]
[1769877575778,3.84487263,2525.2,2524.0,0.19839]
[1769877577778,3.84487263,2525.2,2524.0,4.07139595]
[1769877578584,3.72694662,2526.3,2524.6,3.87300595]
[1769877578782,3.72694662,2526.3,2524.7,0.19834]
[1769877579580,3.73148252,2526.3,2524.7,0.19834]
[1769877579784,3.73148252,2526.3,2524.7,4.07224013]
[1769877580472,3.73148252,2526.3,2524.7,0.19834]
[1769877582081,7.59059158,2525.8,2523.6,0.00405601]
[1769877582284,3.62159158,2525.6,2523.6,0.00405601]
[1769877582581,3.81988158,2525.4,2523.6,0.00405601]
[1769877585785,3.81988158,2525.4,2523.7,3.81080694]
[1769877587180,3.62159158,2525.4,2523.9,3.61238694]
[1769877587980,3.62159158,2525.4,2523.9,3.81079694]
[1769877588385,3.62159158,2525.4,2524.3,3.61238694]
[1769877588586,3.62159158,2525.4,2524.4,0.19837]
[1769877588887,3.62159158,2525.7,2524.5,3.81074694]
[1769877589680,3.62159158,2525.7,2524.6,0.19835]
[1769877589991,3.62159158,2526.2,2524.6,0.19835]
[1769877590583,3.62159158,2526.0,2524.0,0.1984]
[1769877590787,3.81983158,2526.0,2524.0,0.1984]
[1769877591191,3.62159158,2525.8,2524.0,0.1984]
[1769877591586,3.81987158,2525.6,2523.6,7.18344295]
[1769877591890,3.81987158,2525.6,2523.9,3.61238694]
[1769877593385,3.81987158,2525.6,2523.8,0.19842]
[1769877593584,3.62159158,2525.4,2523.6,0.00405601]
[1769877595193,3.81988158,2525.4,2523.6,0.00405601]
[1769877595391,3.62159158,2525.1,2523.6,0.00405601]
[1769877595692,3.62159158,2524.6,2523.6,0.00405601]
[1769877596085,3.62159158,2524.6,2522.7,3.81088694]
[1769877597192,3.62159158,2524.6,2522.7,3.81427658]
[1769877599395,3.81995158,2524.6,2522.7,0.20188964]
[1769877600292,3.62159158,2524.4,2522.7,0.20188964]
[1769877600492,3.6247586,2524.4,2522.8,3.61238694]
[1769877600696,3.6247586,2524.4,2522.9,3.61238694]
[1769877600894,3.6247586,2524.4,2523.0,0.19848]
[1769877601191,3.6247586,2524.4,2523.2,3.61238694]
[1769877601798,3.6247586,2524.4,2523.4,3.81082694]
[1769877602697,3.567,2525.1,2523.4,3.81082694]
[1769877603094,3.567,2525.1,2523.6,3.61238694]
[1769877603399,3.567,2525.1,2523.6,3.81081694]
[1769877603591,3.57133363,2525.1,2523.6,3.81081694]
[1769877604397,3.57133363,2525.1,2523.6,0.19843]
[1769877604600,3.62159158,2525.0,2523.6,0.19843]
[1769877604801,3.62159158,2525.0,2522.9,0.19848]
[1769877605095,3.81991158,2525.0,2523.0,3.61238694]
[1769877605400,3.62159158,2524.8,2523.0,3.61238694]
[1769877605702,3.62159158,2524.5,2522.7,0.00338964]
[1769877605901,3.62159158,2524.3,2522.7,0.00338964]
[1769877607202,3.88326572,2523.9,2521.9,0.19856]
[1769877607394,3.88326572,2523.8,2521.8,3.80697448]
[1769877607589,3.88326572,2523.6,2521.5,7.37497448]
[1769877607789,3.88326572,2523.2,2521.3,0.19861]
[1769877607996,8.45080385,2523.1,2520.9,3.80697448]
[1769877608195,3.88326572,2523.0,2520.9,0.00406007]
[1769877608398,3.88326572,2522.8,2520.9,0.00406007]
[1769877608599,7.85226572,2522.8,2520.9,0.00406007]
[1769877608792,3.88326572,2522.7,2520.9,0.00406007]
[1769877608998,3.88326572,2522.7,2520.9,3.81103455]
[1769877609800,3.88326572,2522.7,2520.9,0.00406007]
[1769877610001,7.85226572,2522.7,2520.9,0.00406007]
[1769877610200,3.88326572,2522.6,2520.9,0.00406007]
[1769877611606,3.88326572,2522.6,2520.9,3.81103455]
[1769877613108,3.88326572,2522.6,2520.9,0.00406007]
[1769877613503,3.88326572,2522.6,2520.9,3.81103455]
[1769877614101,3.88326572,2522.2,2520.0,0.50811891]
[1769877614300,4.08182572,2522.0,2520.0,0.30940891]
[1769877614504,3.88326572,2521.8,2519.4,3.80697448]
[1769877615013,3.88326572,2521.3,2519.1,3.80697448]
[1769877615307,3.88326572,2521.1,2519.1,3.81184629]
[1769877616109,3.88326572,2521.1,2519.1,4.01062629]
[1769877616511,3.88326572,2521.1,2519.3,4.00574448]
[1769877616809,0.00493373,2521.3,2520.1,3.80697448]
[1769877617419,3.88819945,2521.3,2520.1,3.80697448]
[1769877617813,0.00493373,2521.3,2520.1,3.80697448]
[1769877618018,0.00493373,2521.3,2520.1,4.00567448]
[1769877618421,3.88819945,2521.3,2520.1,4.00567448]
[1769877618822,0.00493373,2521.3,2520.1,4.00567448]
[1769877619116,1.03715986,2522.4,2521.0,3.80697448]
[1769877619313,1.03715986,2522.4,2521.0,4.00560448]
[1769877619622,3.88326572,2522.3,2521.0,4.00560448]
[1769877620021,3.88647725,2522.3,2521.0,4.0095964]
[1769877620522,0.00321153,2522.3,2521.0,4.0095964]
[1769877620823,0.00321153,2522.3,2521.2,4.00559448]
[1769877621522,3.88647725,2522.3,2521.2,4.00559448]
[1769877622327,3.88647725,2522.3,2521.2,0.19862]
[1769877623222,3.88647725,2522.3,2521.2,4.00559448]
[1769877623416,3.88647725,2522.3,2521.0,0.00399192]
[1769877624724,3.88647725,2522.3,2521.0,3.8109664]
[1769877624924,3.88647725,2522.3,2521.0,2.3109664]
[1769877625827,3.88647725,2522.3,2521.0,2.31592689]
[1769877626526,0.00321153,2522.3,2521.1,0.19863]
[1769877626926,0.00321153,2522.3,2521.2,3.80697448]
[1769877627128,0.00321153,2522.3,2521.2,4.00559448]
[1769877627826,3.88326572,2523.0,2521.4,3.80697448]
[1769877628530,3.88326572,2523.0,2521.0,3.81193497]
[1769877628726,3.88326572,2522.8,2521.0,3.81193497]
[1769877631125,3.88326572,2522.8,2521.2,4.00559448]
[1769877633030,3.88326572,2522.8,2521.2,0.19862]
[1769877633331,7.85226572,2522.8,2521.0,0.00496049]
[1769877633528,3.88326572,2522.6,2521.0,0.00496049]
[1769877633727,3.88326572,2522.6,2521.0,3.81193497]
[1769877634623,3.88326572,2522.6,2521.0,4.01056497]
[1769877634923,3.88326572,2522.6,2521.3,3.80697448]
[1769877635324,3.88326572,2522.6,2521.3,4.00558448]
[1769877637035,3.88326572,2522.6,2521.3,0.19861]
[1769877637330,3.88326572,2522.6,2521.0,3.73583127]
[1769877638736,3.88326572,2522.6,2521.0,3.93447127]
[1769877645435,3.65332687,2522.4,2521.0,0.00496049]
[1769877645633,3.65332687,2522.2,2521.0,0.00496049]
[1769877646341,3.65332687,2522.0,2521.0,0.00496049]
[1769877646837,3.65332687,2522.0,2521.0,3.75067432]
[1769877647033,3.65332687,2522.3,2521.0,3.94931432]
[1769877648732,34.89452097,2522.6,2520.0,10.24455747]
[1769877648733,3.65332687,2522.0,2520.0,10.24455747]
[1769877648937,3.65332687,2521.5,2519.8,3.74571383]
[1769877649138,3.65332687,2521.3,2519.8,3.74571383]
[1769877649937,38.85652097,2521.7,2520.0,3.94442383]
[1769877649938,3.65332687,2521.6,2520.0,3.94442383]
[1769877653644,3.65332687,2522.0,2520.3,3.74571383]
[1769877654941,3.65332687,2522.0,2520.3,3.94440383]
[1769877655241,3.65332687,2522.0,2520.5,3.74571383]
[1769877656534,3.963,2522.3,2520.5,3.74571383]
[1769877656741,3.65332687,2522.4,2520.7,3.74571383]
[1769877660247,3.65332687,2522.4,2520.7,3.94437383]
[1769877660547,3.65332687,2522.4,2521.2,3.74571383]
[1769877660743,3.65332687,2522.7,2521.2,3.94433383]
[1769877661543,3.65332687,2522.7,2521.2,0.19862]
[1769877662049,3.65332687,2522.7,2521.2,3.94433383]
[1769877663748,3.65332687,2522.7,2520.6,3.74571383]
[1769877664145,3.65332687,2522.5,2520.6,3.74571383]
[1769877664341,3.65332687,2522.5,2521.1,3.74571383]
[1769877664742,3.65332687,2522.9,2521.4,0.1986]
[1769877664947,3.65332687,2522.9,2521.5,3.74571383]
[1769877666648,3.65332687,2522.9,2521.5,3.94431383]
[1769877669347,3.65332687,2522.9,2521.2,3.80900325]
[1769877673358,3.65332687,2522.9,2521.4,3.80900325]
[1769877676757,3.65332687,2522.9,2521.8,3.80900325]
[1769877676958,3.65332687,2522.9,2521.8,3.81400624]
[1769877677259,3.65332687,2522.9,2521.8,4.01257624]
[1769877680661,0.00292124,2523.0,2521.8,4.01257624]
[1769877680856,3.65286465,2523.0,2521.8,4.01257624]
[1769877684163,0.00292124,2523.0,2522.0,4.00756325]
[1769877684361,3.64994341,2523.7,2522.6,3.80900325]
[1769877685060,3.64994341,2523.7,2522.5,0.19851]
[1769877685259,3.65416449,2523.7,2522.5,0.19851]